lending/lending_fUSD_20250318
["ID","MTS","AMOUNT","RATE_DAILY","PERIOD"]
[356367897,1742339534817,-629.47,0.00037808,12]
[356367898,1742339534827,-500.0,0.00037808,12]
[356367899,1742339534837,-500.0,0.00037808,12]
[356367900,1742339534846,-500.0,0.00037808,12]
[356367901,1742339534855,-2483.39,0.00037808,12]
[356367902,1742339534867,-500.0,0.00037808,12]
[356367903,1742339534876,-818.98,0.00037808,12]
[356367904,1742339534886,-8678.86,0.00037808,12]
[356367905,1742339534896,-500.0,0.00037808,12]
[356367906,1742339534905,-500.0,0.00037808,12]
[356367907,1742339534915,-500.0,0.00037808,12]
[356367908,1742339534925,-852.66,0.00037808,12]
[356367909,1742339534934,-500.0,0.00037808,12]
[356367910,1742339534944,-1387.5,0.00037808,12]
[356367911,1742339534954,-609.81,0.00037808,12]
[356367912,1742339534964,-500.0,0.00037808,12]
[356367913,1742339534974,-1940.56,0.00037808,12]
[356367914,1742339534983,-5124.49,0.00037808,12]
[356367915,1742339534993,-500.0,0.00037808,12]
[356367916,1742339535002,-982.22,0.00037808,12]
[356367917,1742339535012,-848.28,0.00037808,12]
[356367918,1742339535021,-555.67,0.00037808,12]
[356367919,1742339535031,-500.0,0.00037808,12]
[356367920,1742339535040,-610.21,0.00037808,12]
[356367921,1742339535050,-797.64,0.00037808,12]
[356367922,1742339535059,-500.0,0.00037808,12]
[356367923,1742339535069,-1404.74,0.00037808,12]
[356367924,1742339535078,-500.0,0.00037808,12]
[356367925,1742339535087,-570.46,0.00037808,12]
[356367926,1742339535096,-626.53,0.00037808,12]
[356367927,1742339535106,-1037.27,0.00037808,12]
[356367928,1742339535115,-500.0,0.00037808,12]
[356367929,1742339535125,-2051.57,0.00037808,12]
[356367930,1742339535134,-1010.64,0.00037808,12]
[356367931,1742339535144,-500.0,0.00037808,12]
[356367932,1742339535153,-517.9,0.00037808,12]
[356367933,1742339535162,-753.9,0.00037808,12]
[356367934,1742339535172,-976.72,0.00037808,12]
[356367935,1742339535180,-698.57,0.00037808,12]
[356367936,1742339535190,-810.35,0.00037808,12]
[356367937,1742339535199,-816.08,0.00037808,12]
[356367938,1742339535209,-1763.99,0.00037808,12]
[356367939,1742339535218,-500.0,0.00037808,12]
[356367940,1742339535228,-807.5,0.00037808,12]
[356367941,1742339535237,-500.0,0.00037808,12]
[356367942,1742339535246,-974.77,0.00037808,12]
[356367943,1742339535256,-1119.31,0.00037808,12]
[356367944,1742339535265,-500.0,0.00037808,12]
[356367945,1742339535275,-1305.41,0.00037808,12]
[356367946,1742339535284,-764.52,0.00037808,12]
[356367947,1742339535293,-321.45481565,0.00037808,12]
[356367948,1742339535302,-500.0,0.00037808,12]
[356367949,1742339535312,-1054.67,0.00037808,12]
[356367950,1742339535322,-636.48,0.00037808,12]
[356367951,1742339535332,-697.71,0.00037808,12]
[356367952,1742339535341,-500.0,0.00037808,2]
[356367953,1742339535351,-871.68,0.00037808,12]
[356367954,1742339535360,-784.0,0.00037808,12]
[356367955,1742339535370,-500.0,0.00037808,12]
[356367956,1742339535379,-1505.16,0.00037808,12]
[356367957,1742339535389,-500.0,0.00037808,12]
[356367958,1742339535399,-500.0,0.00037808,12]
[356367959,1742339535409,-3544.19,0.00037808,12]
[356367960,1742339535419,-500.0,0.00037808,12]
[356367961,1742339535429,-508.43626231,0.00037808,12]
[356367962,1742339535439,-1054.74,0.00037808,12]
[356367963,1742339535448,-3375.24,0.00037808,12]
[356367964,1742339535458,-500.0,0.00037808,12]
[356367965,1742339535467,-500.0,0.00037808,12]
[356367966,1742339535476,-1877.16,0.00037808,12]
[356367967,1742339535485,-500.0,0.00037808,12]
[356367968,1742339535494,-1691.18,0.00037808,12]
[356367969,1742339535503,-500.0,0.00037808,12]
[356367970,1742339535513,-1037.55,0.00037808,12]
[356367971,1742339535522,-517.11,0.00037808,12]
[356367972,1742339535532,-1000.0,0.00037808,4]
[356367973,1742339535541,-258.42,0.00037866,2]
[356367974,1742339535550,-1657.99266,0.00037888,30]
[356367975,1742339535560,-1000.0,0.000379,50]
[356367976,1742339535570,-150.0,0.000379,120]
[356367977,1742339535579,-217.11044778,0.0003794,2]
[356367978,1742339535588,-1000.0,0.00037945,4]
[356367979,1742339535597,-92835.16,0.00037988,6]
[356367980,1742339535607,-68827.26,0.00037988,6]
[356367981,1742339535616,-900.0,0.00038,39]
[356367982,1742339535625,-2178.89870585,0.00038,2]
[356367983,1742339535635,-759.80914493,0.00038,25]
[356367984,1742339535644,-200.0,0.00038,120]
[356367985,1742339535654,-3000.0,0.00038,20]
[356367986,1742339535663,-838.99072728,0.00038,120]
[356367987,1742339535673,-577.28721919,0.00038,120]
[356367988,1742339535682,-500.0,0.00038082,12]
[356367989,1742339535691,-660.95,0.00038082,12]
[356367990,1742339535700,-500.0,0.00038082,12]
[356367991,1742339535710,-1089.18,0.00038082,12]
[356367992,1742339535721,-1280.18,0.00038082,12]
[356367993,1742339535731,-500.0,0.00038082,12]
[356367994,1742339535740,-705.65,0.00038082,12]
[356367995,1742339535750,-500.0,0.00038082,12]
[356367996,1742339535760,-500.0,0.00038082,12]
[356367997,1742339535770,-839.95,0.00038082,12]
[356367998,1742339535779,-500.0,0.00038082,12]
[356367999,1742339535791,-500.0,0.00038082,12]
[356368000,1742339535801,-500.0,0.00038082,12]
[356368001,1742339535810,-586.59,0.00038082,12]
[356368002,1742339535820,-500.0,0.00038082,12]
[356368003,1742339535830,-659.86,0.00038082,12]
[356368004,1742339535840,-500.0,0.00038082,12]
[356368005,1742339535849,-533.89925897,0.00038082,12]
[356368006,1742339535861,-500.0,0.00038082,12]
[356368007,1742339535870,-500.0,0.00038082,12]
[356368008,1742339535879,-781.58,0.00038082,12]
[356368009,1742339535889,-500.0,0.00038082,12]
[356368010,1742339535898,-578.43,0.00038082,12]
[356368011,1742339535908,-716.41,0.00038082,12]
[356368012,1742339535917,-500.0,0.00038082,12]
[356368013,1742339535927,-875.76,0.00038082,12]
[356368014,1742339535936,-500.0,0.00038082,12]
[356368015,1742339535946,-500.0,0.00038082,12]
[356368016,1742339535955,-500.0,0.00038082,12]
[356368017,1742339535965,-500.0,0.00038082,12]
[356368018,1742339535974,-1293.1,0.00038082,12]
[356368019,1742339535983,-554.73,0.00038082,12]
[356368020,1742339535992,-500.0,0.00038082,12]
[356368021,1742339536001,-500.0,0.00038082,12]
[356368022,1742339536010,-887.4,0.00038082,12]
[356368023,1742339536020,-933.35,0.00038082,12]
[356368024,1742339536030,-645.27,0.00038082,12]
[356368025,1742339536039,-1270.34,0.00038082,12]
[356368026,1742339536048,-635.6,0.00038082,12]
[356368027,1742339536058,-546.63,0.00038082,12]
[356368028,1742339536068,-500.0,0.00038082,12]
[356368029,1742339536077,-500.0,0.00038082,12]
[356368030,1742339536087,-1007.61,0.00038082,12]
[356368031,1742339536096,-500.0,0.00038082,12]
[356368032,1742339536106,-616.02,0.00038082,12]
[356368033,1742339536115,-686.76,0.00038082,12]
[356368034,1742339536127,-500.0,0.00038082,12]
[356368035,1742339536138,-500.0,0.00038082,12]
[356368036,1742339536148,-500.0,0.00038082,12]
[356368037,1742339536158,-531.32,0.00038082,12]
[356368038,1742339536169,-500.0,0.00038082,12]
[356368039,1742339536178,-601.48,0.00038082,12]
[356368040,1742339536187,-567.63,0.00038082,12]
[356368041,1742339536197,-963.46,0.00038082,12]
[356368042,1742339536206,-500.0,0.00038082,12]
[356368043,1742339536217,-500.0,0.00038082,12]
[356368044,1742339536226,-815.63,0.00038082,12]
[356368045,1742339536236,-249.09781163,0.00038082,12]
[356368046,1742339536246,-500.0,0.00038082,12]
[356368047,1742339536256,-500.0,0.00038082,12]
[356368048,1742339536265,-500.0,0.00038082,12]
[356368049,1742339536274,-500.0,0.00038082,12]
[356368050,1742339536284,-500.0,0.00038082,12]
[356368051,1742339536293,-500.0,0.00038082,12]
[356368052,1742339536302,-500.37,0.00038082,12]
[356368053,1742339536312,-546.76,0.00038082,12]
[356368054,1742339536321,-500.0,0.00038082,12]
[356368055,1742339536331,-500.0,0.00038082,12]
[356368056,1742339536340,-500.0,0.00038082,12]
[356368057,1742339536350,-500.0,0.00038082,12]
[356368058,1742339536360,-599.5,0.00038082,12]
[356368059,1742339536369,-729.58,0.00038082,12]
[356368060,1742339536379,-549.67942789,0.00038082,12]
[356368061,1742339536388,-922.39,0.00038082,12]
[356368062,1742339536397,-500.0,0.00038082,12]
[356368063,1742339536407,-1163.14,0.00038082,12]
[356368064,1742339536416,-875.92,0.00038082,30]
[356368065,1742339536426,-500.0,0.00038082,12]
[356368066,1742339536435,-750.87,0.00038082,12]
[356368067,1742339536445,-500.0,0.00038082,12]
[356368068,1742339536454,-1410.05,0.00038082,12]
[356368069,1742339536463,-510.0,0.00038082,12]
[356368070,1742339536473,-541.9,0.00038082,12]
[356368071,1742339536483,-340.80364715,0.00038082,12]
[356368072,1742339536492,-2100.21,0.00038082,12]
[356368073,1742339536501,-500.0,0.00038082,12]
[356368074,1742339536510,-819.72,0.00038082,12]
[356368075,1742339536520,-500.0,0.00038082,12]
[356368076,1742339536529,-868.85,0.00038082,12]
[356368077,1742339536540,-223.1577255,0.00038082,12]
[356368078,1742339536549,-500.0,0.00038082,12]
[356368079,1742339536559,-832.99,0.00038082,12]
[356368080,1742339536569,-500.0,0.00038082,12]
[356368081,1742339536579,-500.0,0.00038082,12]
[356368082,1742339536589,-1487.67,0.00038082,12]
[356368083,1742339536598,-1565.380344,0.00038082,12]
[356368084,1742339536608,-151.731954,0.00038082,12]
[356368085,1742339536618,-500.0,0.00038082,12]
[356368086,1742339536628,-728.98,0.00038082,12]
[356368087,1742339536638,-500.0,0.00038082,12]
[356368088,1742339536648,-915.45,0.00038082,12]
[356368089,1742339536658,-500.0,0.00038082,12]
[356368090,1742339536668,-523.14,0.00038082,12]
[356368091,1742339536679,-500.0,0.00038082,12]
[356368092,1742339536688,-500.0,0.00038082,12]
[356368093,1742339536698,-415.53198,0.00038082,12]
[356368094,1742339536708,-500.0,0.00038082,12]
[356368095,1742339536718,-500.0,0.00038082,12]
[356368096,1742339536728,-571.54,0.00038082,12]
[356368097,1742339536737,-210.17202262,0.00038082,12]
[356368098,1742339536747,-500.0,0.00038082,12]
[356368099,1742339536757,-547.0,0.00038082,12]
[356368100,1742339536767,-500.0,0.00038082,12]
[356368101,1742339536777,-1579.021524,0.00038082,12]
[356368102,1742339536791,-540.14,0.00038082,12]
[356368103,1742339536801,-500.0,0.00038082,12]
[356368104,1742339536811,-500.0,0.00038082,12]
[356368105,1742339536821,-507.06,0.00038082,12]
[356368106,1742339536833,-500.0,0.00038082,12]
[356368107,1742339536843,-500.0,0.00038082,12]
[356368108,1742339536853,-1406.95,0.00038082,12]
[356368109,1742339536863,-1265.92,0.00038082,12]
[356368110,1742339536873,-583.92,0.00038082,12]
[356368111,1742339536883,-500.0,0.00038082,12]
[356368112,1742339536893,-819.59,0.00038082,12]
[356368113,1742339536903,-500.0,0.00038082,12]
[356368114,1742339536913,-500.0,0.00038082,12]
[356368115,1742339536923,-1112.86,0.00038082,12]
[356368116,1742339536933,-528.41916506,0.00038082,12]
[356368117,1742339536943,-500.0,0.00038082,12]
[356368118,1742339536954,-849.05,0.00038082,12]
[356368119,1742339536964,-610.12,0.00038082,12]
[356368120,1742339536975,-621.69209409,0.00038082,12]
[356368121,1742339536986,-500.0,0.00038082,12]
[356368122,1742339536995,-500.0,0.00038082,12]
[356368123,1742339537005,-966.8,0.00038082,12]
[356368124,1742339537015,-562.17,0.00038082,12]
[356368125,1742339537025,-500.0,0.00038082,12]
[356368126,1742339537034,-500.0,0.00038082,12]
[356368127,1742339537043,-500.0,0.00038082,12]
[356368128,1742339537054,-500.0,0.00038082,12]
[356368129,1742339537063,-500.0,0.00038082,12]
[356368130,1742339537073,-500.0,0.00038082,12]
[356368131,1742339537082,-565.83,0.00038082,12]
[356368132,1742339537091,-897.12,0.00038082,12]
[356368133,1742339537101,-500.0,0.00038082,12]
[356368134,1742339537110,-500.0,0.00038082,12]
[356368135,1742339537120,-500.0,0.00038082,12]
[356368136,1742339537129,-500.0,0.00038082,12]
[356368137,1742339537139,-500.0,0.00038082,12]
[356368138,1742339537149,-588.08,0.00038082,12]
[356368139,1742339537158,-500.0,0.00038082,12]
[356368140,1742339537168,-539.17,0.00038082,12]
[356368141,1742339537177,-500.0,0.00038082,12]
[356368142,1742339537187,-500.0,0.00038082,12]
[356368143,1742339537197,-2686.86,0.00038082,12]
[356368144,1742339537207,-956.37,0.00038082,12]
[356368145,1742339537216,-500.0,0.00038082,12]
[356368146,1742339537226,-1521.69,0.00038082,7]
[356368147,1742339537236,-500.0,0.00038082,12]
[356368148,1742339537246,-914.58,0.00038082,12]
[356368149,1742339537255,-500.0,0.00038082,12]
[356368150,1742339537265,-331.18133457,0.00038082,12]
[356368151,1742339537274,-537.65,0.00038082,12]
[356368152,1742339537283,-1313.1,0.00038082,12]
[356368153,1742339537292,-500.0,0.00038082,12]
[356368154,1742339537302,-500.0,0.00038082,12]
[356368155,1742339537312,-894.12,0.00038082,12]
[356368156,1742339537322,-523.64,0.00038082,12]
[356368157,1742339537331,-500.0,0.00038082,12]
[356368158,1742339537341,-507.51768545,0.00038082,12]
[356368159,1742339537351,-500.0,0.00038082,12]
[356368160,1742339537362,-500.0,0.00038082,12]
[356368161,1742339537371,-523.91,0.00038082,12]
[356368162,1742339537381,-500.0,0.00038082,12]
[356368163,1742339537391,-500.0,0.00038082,12]
[356368164,1742339537401,-845.67,0.00038082,12]
[356368165,1742339537411,-500.0,0.00038082,12]
[356368166,1742339537419,-1156.08,0.00038082,12]
[356368167,1742339537429,-522.25629034,0.00038082,12]
[356368168,1742339537438,-500.0,0.00038082,12]
[356368169,1742339537447,-510.37,0.00038082,12]
[356368170,1742339537457,-467.88465859,0.00038082,12]
[356368171,1742339537467,-655.83,0.00038082,12]
[356368172,1742339537476,-1175.67,0.00038082,12]
[356368173,1742339537487,-1360.65,0.00038082,12]
[356368174,1742339537496,-675.44,0.00038082,12]
[356368175,1742339537506,-584.29,0.00038082,12]
[356368176,1742339537515,-500.0,0.00038082,12]
[356368177,1742339537525,-582.9417727,0.00038082,12]
[356368178,1742339537534,-535.37,0.00038082,12]
[356368179,1742339537544,-940.73,0.00038082,12]
[356368180,1742339537554,-500.0,0.00038082,12]
[356368181,1742339537563,-500.0,0.00038082,12]
[356368182,1742339537572,-661.64,0.00038082,12]
[356368183,1742339537581,-628.6,0.00038082,12]
[356368184,1742339537591,-872.38,0.00038082,12]
[356368185,1742339537601,-671.95,0.00038082,12]
[356368186,1742339537610,-589.35,0.00038082,12]
[356368187,1742339537620,-500.0,0.00038082,12]
[356368188,1742339537630,-500.0,0.00038082,12]
[356368189,1742339537640,-500.0,0.00038082,12]
[356368190,1742339537648,-500.0,0.00038082,12]
[356368191,1742339537658,-500.0,0.00038082,12]
[356368192,1742339537667,-2111.58,0.00038082,12]
[356368193,1742339537676,-1118.44,0.00038082,12]
[356368194,1742339537685,-500.0,0.00038082,12]
[356368195,1742339537695,-500.0,0.00038082,12]
[356368196,1742339537705,-952.51,0.00038082,12]
[356368197,1742339537715,-500.0,0.00038082,12]
[356368198,1742339537724,-1141.77,0.00038082,12]
[356368199,1742339537734,-509.9,0.00038082,12]
[356368200,1742339537744,-786.29,0.00038082,12]
[356368201,1742339537754,-500.0,0.00038082,12]
[356368202,1742339537764,-885.74,0.00038082,12]
[356368203,1742339537774,-500.0,0.00038082,12]
[356368204,1742339537784,-500.0,0.00038082,12]
[356368205,1742339537797,-853.02,0.00038082,12]
[356368206,1742339537807,-500.0,0.00038082,12]
[356368207,1742339537817,-500.0,0.00038082,12]
[356368208,1742339537827,-930.16,0.00038082,12]
[356368209,1742339537837,-534.99,0.00038082,12]
[356368210,1742339537847,-500.0,0.00038082,12]
[356368211,1742339537857,-554.71,0.00038082,12]
[356368212,1742339537868,-1096.04,0.00038082,12]
[356368213,1742339537878,-500.0,0.00038082,12]
[356368214,1742339537891,-669.21,0.00038082,12]
[356368215,1742339537901,-2116.57,0.00038082,12]
[356368216,1742339537910,-500.0,0.00038082,12]
[356368217,1742339537920,-224.51997937,0.00038082,12]
[356368218,1742339537929,-500.0,0.00038082,12]
[356368219,1742339537939,-824.59,0.00038082,12]
[356368220,1742339537949,-1273.18,0.00038082,12]
[356368221,1742339537959,-500.0,0.00038082,12]
[356368222,1742339537969,-662.07,0.00038082,12]
[356368223,1742339537978,-1001.65,0.00038082,12]
[356368224,1742339537988,-865.19,0.00038082,12]
[356368225,1742339538225,-526.15458081,0.00038082,12]
[356368226,1742339538236,-569.57,0.00038082,12]
[356368227,1742339538246,-850.25,0.00038082,12]
[356368228,1742339538256,-2025.31,0.00038082,12]
[356368229,1742339538265,-500.0,0.00038082,12]
[356368230,1742339538275,-1125.43,0.00038082,12]
[356368231,1742339538284,-1034.97,0.00038082,12]
[356368232,1742339538294,-736.13,0.00038082,12]
[356368233,1742339538304,-500.0,0.00038082,12]
[356368234,1742339538314,-500.0,0.00038082,12]
[356368235,1742339538323,-500.0,0.00038082,12]
[356368236,1742339538333,-500.0,0.00038082,12]
[356368237,1742339538342,-500.0,0.00038082,12]
[356368238,1742339538352,-705.75,0.00038082,12]
[356368239,1742339538361,-500.0,0.00038082,12]
[356368240,1742339538370,-1168.81,0.00038082,12]
[356368241,1742339538380,-500.0,0.00038082,12]
[356368242,1742339538390,-909.53,0.00038082,12]
[356368243,1742339538400,-1214.66,0.00038082,12]
[356368244,1742339538410,-750.56,0.00038082,12]
[356368245,1742339538420,-500.0,0.00038082,12]
[356368246,1742339538429,-500.0,0.00038082,12]
[356368247,1742339538439,-999.43,0.00038082,12]
[356368248,1742339538448,-200.0,0.00038082,7]
[356368249,1742339538458,-912.96,0.00038082,12]
[356368250,1742339538468,-500.0,0.00038082,12]
[356368251,1742339538477,-628.87,0.00038082,12]
[356368252,1742339538487,-1022.31,0.00038082,12]
[356368253,1742339538496,-500.0,0.00038082,12]
[356368254,1742339538505,-500.0,0.00038082,12]
[356368255,1742339538515,-664.59,0.00038082,12]
[356368256,1742339538524,-970.21,0.00038082,12]
[356368257,1742339538534,-605.69,0.00038082,12]
[356368258,1742339538544,-1253.42,0.00038082,12]
[356368259,1742339538553,-1388.92,0.00038082,12]
[356368260,1742339538563,-500.0,0.00038082,12]
[356368261,1742339538572,-500.0,0.00038082,12]
[356368262,1742339538582,-500.0,0.00038082,12]
[356368263,1742339538592,-500.0,0.00038082,12]
[356368264,1742339538601,-500.0,0.00038082,12]
[356368265,1742339538611,-1024.33,0.00038082,12]
[356368266,1742339538621,-603.22,0.00038082,12]
[356368267,1742339538630,-747.21,0.00038082,12]
[356368268,1742339538641,-500.0,0.00038082,12]
[356368269,1742339538650,-500.0,0.00038082,12]
[356368270,1742339538660,-500.0,0.00038082,12]
[356368271,1742339538669,-1242.02,0.00038082,12]
[356368272,1742339538679,-843.17,0.00038082,12]
[356368273,1742339538689,-535.11,0.00038082,12]
[356368274,1742339538699,-532.91,0.00038082,12]
[356368275,1742339538708,-536.51,0.00038082,7]
[356368276,1742339538718,-500.0,0.00038082,12]
[356368277,1742339538728,-864.22,0.00038082,12]
[356368278,1742339538738,-500.0,0.00038082,12]
[356368279,1742339538748,-500.0,0.00038082,12]
[356368280,1742339538758,-500.0,0.00038082,12]
[356368281,1742339538767,-500.0,0.00038082,12]
[356368282,1742339538777,-500.0,0.00038082,12]
[356368283,1742339538789,-1425.59,0.00038082,12]
[356368284,1742339538799,-500.0,0.00038082,12]
[356368285,1742339538809,-838.26,0.00038082,12]
[356368286,1742339538819,-500.0,0.00038082,12]
[356368287,1742339538829,-1035.77,0.00038082,12]
[356368288,1742339538839,-1119.9,0.00038082,12]
[356368289,1742339538849,-500.0,0.00038082,12]
[356368290,1742339538859,-940.64,0.00038082,12]
[356368291,1742339538870,-500.0,0.00038082,12]
[356368292,1742339538880,-500.0,0.00038082,12]
[356368293,1742339538891,-757.19,0.00038082,12]
[356368294,1742339538901,-500.0,0.00038082,12]
[356368295,1742339538911,-500.0,0.00038082,12]
[356368296,1742339538921,-1602.15,0.00038082,12]
[356368297,1742339538929,-1002.8,0.00038082,12]
[356368298,1742339538938,-1331.13,0.00038082,12]
[356368299,1742339538947,-1198.43,0.00038082,12]
[356368300,1742339538957,-500.0,0.00038082,12]
[356368301,1742339538967,-500.0,0.00038082,12]
[356368302,1742339538976,-649.81,0.00038082,12]
[356368303,1742339538986,-500.0,0.00038082,12]
[356368304,1742339538995,-999.15,0.00038082,12]
[356368305,1742339539004,-2598.97,0.00038082,12]
[356368306,1742339539014,-500.0,0.00038082,12]
[356368307,1742339539023,-3644.21,0.00038082,12]
[356368308,1742339539033,-500.0,0.00038082,12]
[356368309,1742339539042,-500.0,0.00038082,12]
[356368310,1742339539052,-1387.99,0.00038082,12]
[356368311,1742339539061,-843.24,0.00038082,12]
[356368312,1742339539070,-500.0,0.00038082,12]
[356368313,1742339539080,-2465.62,0.00038082,12]
[356368314,1742339539089,-975.0,0.00038082,12]
[356368315,1742339539098,-609.77,0.00038082,12]
[356368316,1742339539107,-1078.91,0.00038082,12]
[356368317,1742339539116,-974.58,0.00038082,12]
[356368318,1742339539126,-2236.78,0.00038082,12]
[356368319,1742339539135,-1919.16,0.00038082,12]
[356368320,1742339539145,-2066.04,0.00038082,12]
[356368321,1742339539154,-1744.56,0.00038082,12]
[356368322,1742339539164,-924.09,0.00038082,12]
[356368323,1742339539174,-965.89,0.00038082,12]
[356368324,1742339539184,-635.15357101,0.00038082,12]
[356368325,1742339539194,-2170.13,0.00038082,7]
[356368326,1742339539203,-630.53,0.00038082,12]
[356368327,1742339539213,-500.0,0.00038082,12]
[356368328,1742339539223,-500.0,0.00038082,12]
[356368329,1742339539233,-4236.85,0.00038082,12]
[356368330,1742339539243,-940.24,0.00038082,12]
[356368331,1742339539252,-701.55,0.00038082,12]
[356368332,1742339539262,-2071.16,0.00038082,12]
[356368333,1742339539272,-2364.63,0.00038082,12]
[356368334,1742339539281,-1084.3,0.00038082,12]
[356368335,1742339539291,-833.55,0.00038082,12]
[356368336,1742339539300,-1166.33,0.00038082,12]
[356368337,1742339539310,-500.0,0.00038082,12]
[356368338,1742339539319,-1018.16,0.00038082,12]
[356368339,1742339539328,-500.0,0.00038082,12]
[356368340,1742339539338,-3791.02,0.00038082,12]
[356368341,1742339539348,-722.87,0.00038082,12]
[356368342,1742339539357,-591.18,0.00038082,12]
[356368343,1742339539367,-627.35,0.00038082,12]
[356368344,1742339539377,-2218.35,0.00038082,12]
[356368345,1742339539387,-433.99,0.00038082,12]
[356368346,1742339539396,-500.0,0.00038082,12]
[356368347,1742339539406,-2207.71,0.00038082,12]
[356368348,1742339539416,-1038.13,0.00038082,12]
[356368349,1742339539426,-7286.97,0.00038082,2]
[356368350,1742339539436,-500.0,0.00038082,12]
[356368351,1742339539456,-500.0,0.00038082,12]
[356368352,1742339539468,-514.35304108,0.00038082,12]
[356368353,1742339539478,-4093.1,0.00038082,12]
[356368354,1742339539488,-662.54,0.00038082,12]
[356368355,1742339539498,-500.0,0.00038082,12]
[356368356,1742339539508,-499.63509983,0.00038082,12]
[356368357,1742339539518,-617.61,0.00038082,12]
[356368358,1742339539529,-884.25,0.00038082,12]
[356368359,1742339539539,-568.35,0.00038082,12]
[356368360,1742339539549,-2314.16,0.00038082,12]
[356368361,1742339539559,-1249.76,0.00038082,12]
[356368362,1742339539569,-590.8,0.00038082,12]
[356368363,1742339539580,-605.74,0.00038082,12]
[356368364,1742339539590,-4019.27,0.00038082,12]
[356368365,1742339539599,-845.44,0.00038082,12]
[356368366,1742339539609,-253.43042721,0.00038082,12]
[356368367,1742339539619,-518.62244297,0.00038082,12]
[356368368,1742339539628,-500.0,0.00038082,12]
[356368369,1742339539639,-1263.79,0.00038082,12]
[356368370,1742339539649,-500.0,0.00038082,12]
[356368371,1742339539659,-841.11,0.00038082,12]
[356368372,1742339539670,-722.51,0.00038082,12]
[356368373,1742339539680,-582.04,0.00038082,12]
[356368374,1742339539690,-1361.67,0.00038082,12]
[356368375,1742339539700,-713.87,0.00038082,12]
[356368376,1742339539710,-1473.86,0.00038082,12]
[356368377,1742339539720,-1912.63,0.00038082,12]
[356368378,1742339539729,-500.0,0.00038082,12]
[356368379,1742339539739,-500.0,0.00038082,12]
[356368380,1742339539749,-714.31,0.00038082,12]
[356368381,1742339539758,-635.53,0.00038082,12]
[356368382,1742339539768,-1883.04,0.00038082,12]
[356368383,1742339539778,-500.0,0.00038082,12]
[356368384,1742339539791,-5988.8,0.00038082,12]
[356368385,1742339539801,-500.0,0.00038082,12]
[356368386,1742339539811,-2180.97,0.00038082,10]
[356368387,1742339539821,-1955.72,0.00038082,12]
[356368388,1742339539832,-6906.57,0.00038082,12]
[356368389,1742339539842,-2131.38,0.00038082,12]
[356368390,1742339539852,-713.4,0.00038082,12]
[356368391,1742339539864,-1357.37,0.00038082,12]
[356368392,1742339539877,-758.94,0.00038082,12]
[356368393,1742339539887,-500.0,0.00038082,12]
[356368394,1742339539898,-517.02,0.00038082,12]
[356368395,1742339539908,-1496.75,0.00038082,12]
[356368396,1742339539919,-1214.53,0.00038082,12]